Cogmind - Beta 15 @@@ ROGUE MODE // 2025.05.10 @ 21:55:46 Player: Dosh Result: Destroyed by P-80 Master with Gamma Rifle Performance ------------- Evolutions (7) 3500 Regions Visited (14) 2800 Robots Destroyed (259) 1295 Value Destroyed (8843) 8843 Prototype IDs (29) 580 Alien Tech Used (0) 0 Bonus (1029) 1029 TOTAL SCORE: 18047 Bonus ------- High Alert Combat Kills 144 Follower Combat Kills 85 Registered with UFD 300 Met Optimus in HQ 500 Cogmind --------- Core Integrity 0/1300 Matter 295/300 Energy 150/150 System Corruption 28% Temperature Cool (0) Movement Core (250) Ox4 Location -3/Testing Parts ------- > --- POWER (2) -------- Micro Antimatter Reactor > --- PROPULSION (8) --- (None) > --- UTILITY (9) ------ Advanced Visual Processing Unit Advanced Terrain Scan Processor Experimental ECM Suite Advanced Hacking Suite > --- WEAPON (2) ------- Nanosword Nanosword > --- INVENTORY (5) ---- Faulty Heavy Antimatter Reactor Advanced Medium Treads Omega Cannon Lance Peak State ------------ > --- POWER ------------ Micro Antimatter Reactor Micro Antimatter Reactor > --- PROPULSION ------- Improved Antigrav System Improved Antigrav System Improved Antigrav System Improved Antigrav System Improved Antigrav System Improved Antigrav System Improved Antigrav System Improved Antigrav System > --- UTILITY ---------- Advanced Heat Sink Medium Storage Unit Small Battery Advanced Visual Processing Unit Advanced Terrain Scan Processor Experimental ECM Suite Advanced Hacking Suite System Shield > --- WEAPON ----------- Nanosword Nanosword > --- INVENTORY -------- Heavy Antimatter Reactor Advanced Medium Treads Omega Cannon Lance Lance [Rating: 126] Favorites ----------- Power Micro Nuclear Core Engine Deuterium Engine Power Core Micro Nuclear Core Reactor Light Antimatter Reactor Propulsion Light Treads Treads Light Treads Leg Myomer Leg Wheel Compact Wheel Hover Unit Cooled Airjet Flight Unit Improved Flight Unit Utility Hardened Medium Armor Plating Device Microactuators Storage Large Storage Unit Processor Improved Signal Interpreter Hackware Hacking Suite Protection Hardened Medium Armor Plating Weapon Improved Assault Rifle Energy Gun Hypervelocity EM Gauss Rifle Energy Cannon Heavy Phase Cannon Ballistic Gun Improved Assault Rifle Ballistic Cannon Omega Cannon Launcher Rocket Launcher Special Weapon Plasma Cutter Impact Weapon Powered Hammer Slashing Weapon Plasma Sword Piercing Weapon Lance Build | -11 -10 -10 -9 -8 -7 -7 -7 -7 -5 -5 -5 -4 -3 -3 ------- Run | Yrd Mat Min Mat Mat Fac Sto Rec Scr Fac Was Fac Fac Res Tes Slots Evolved 14 | . . . 2 2 2 . . . 4 . . 2 2 . Power 1 | . . . . . . . . . 1 . . . . . Propulsion 6 | . . . 1 1 1 . . . 1 . . . 2 . Utility 7 | . . . 1 1 1 . . . 2 . . 2 . . Weapon . | . . . . . . . . . . . . . . . Parts Attached 219 | 6 12 7 29 17 25 2 . 1 21 . 19 47 3 30 Power 32 | 1 1 1 3 1 3 1 . . 4 . 4 8 1 4 Engine 9 | 1 1 1 3 1 1 . . . 1 . . . . . Core 12 | . . . . . 2 1 . . 3 . 4 2 . . Reactor 11 | . . . . . . . . . . . . 6 1 4 Propulsion 85 | 2 5 2 13 7 11 1 . . 5 . 8 16 2 13 Treads 32 | 2 4 2 12 7 . . . . . . 2 3 . . Leg 7 | . . . . . . . . . . . . 6 . 1 Wheel 1 | . . . . . . . . . . . 1 . . . Hover 43 | . . . . . 11 1 . . 5 . 5 7 2 12 Flight 2 | . 1 . 1 . . . . . . . . . . . Utility 69 | 1 3 2 9 6 8 . . . 7 . 5 20 . 8 Device 24 | . . . 3 . 2 . . . 3 . 4 7 . 5 Storage 7 | 1 1 1 1 . 1 . . . . . . . . 2 Processor 8 | . . . 1 . 1 . . . . . . 6 . . Hackware 11 | . . . . . 3 . . . 3 . 1 3 . 1 Protection 19 | . 2 1 4 6 1 . . . 1 . . 4 . . Artifact . | . . . . . . . . . . . . . . . Weapon 33 | 2 3 2 4 3 3 . . 1 5 . 2 3 . 5 Energy Gun 1 | . . . . . . . . . . . . . . 1 Energy Cannon 2 | . . . . . . . . . 2 . . . . . Ballistic Gun 12 | 2 3 1 3 2 . . . . . . . . . 1 Ballistic Cannon 1 | . . . . . . . . . . . . . . 1 Launcher 4 | . . 1 . . . . . . 1 . . 2 . . Special Weapon 1 | . . . 1 . . . . . . . . . . . Impact Weapon 2 | . . . . . 2 . . . . . . . . . Slashing Weapon 9 | . . . . 1 1 . . 1 2 . 2 . . 2 Piercing Weapon 1 | . . . . . . . . . . . . 1 . . Special Melee Weapon . | . . . . . . . . . . . . . . . Unidentified Prototypes 19 | . . . 2 . 1 . . . 2 . . 4 . 10 Parts Lost 109 | . 4 2 3 5 . 1 . . 10 . 14 37 . 33 Power 19 | . 1 1 . . . . . . 3 . 4 6 . 4 Propulsion 48 | . 2 . . 2 . . . . 3 . 7 17 . 17 Utility 34 | . 1 1 3 1 . 1 . . 4 . 1 11 . 11 Weapon 8 | . . . . 2 . . . . . . 2 3 . 1 Highest Loss Streak 15 | . 3 2 1 2 . 1 . . 4 . 8 15 . 12 To Critical Strikes 4 | . . . . 1 . . . . . . . . . 3 Average Backups 16 | . 7 14 22 24 14 14 14 14 12 11 11 10 4 5 Power . | . . . . 1 1 1 1 1 . 1 . 1 . . Propulsion 5 | . 2 6 9 8 3 2 3 3 1 1 2 2 1 1 Utility 5 | . 2 3 5 8 6 7 7 7 4 3 3 3 . . Weapon 3 | . 1 4 5 4 2 1 1 1 2 4 2 2 3 3 Tool/Special . | . . . . . . . . . . . . . . . Unused Backups 31 | . 2 . 3 8 6 . . 1 2 . . 6 . 3 Power . | . . . . . . . . . . . . . . . Propulsion 13 | . 1 . 1 4 2 . . . . . . 3 . 2 Utility 11 | . 1 . 2 3 2 . . 1 1 . . 1 . . Weapon 4 | . . . . 1 2 . . . . . . . . 1 Tool/Special 3 | . . . . . . . . . 1 . . 2 . . Average Slot Usage (%) 94 | . 95 97 98 99 96 98 100 100 98 94 86 82 78 70 Engine 6 | . 13 12 10 9 . . . . 1 5 1 . . . Core 2 | . . . . . 6 7 7 7 9 5 7 2 . . Treads 18 | . 25 28 33 35 . . . . . . 3 5 . . Hover 12 | . . . . . 37 36 38 38 34 35 21 15 18 17 Device 3 | . . . 1 1 6 5 . . 7 5 6 7 9 7 Storage 8 | . 14 14 11 9 7 7 7 7 5 5 5 4 . 4 Processor 5 | . . . 7 1 6 7 7 7 5 5 5 10 19 13 Hackware 6 | . . . . . 14 15 15 15 13 11 16 13 9 9 Protection 10 | . 12 14 11 24 . 1 7 7 5 5 2 2 4 1 Ballistic Gun 11 | . 28 25 21 17 . . . . . . . . . . Impact Weapon 1 | . . . . . 10 15 15 12 2 . . . . . Slashing Weapon 2 | . . . . . 1 . . 2 7 5 7 6 4 5 Peak Build Rating 126 | 6 8 9 23 30 56 56 56 57 87 84 98 115 96 126 Average Rating 43 | 4 6 8 20 28 50 54 56 56 76 83 75 91 91 86 On Entrance 49 | . 6 8 9 23 30 55 56 56 57 78 84 98 81 96 Naked Turns . | . . . . . . . . . . . . . . . Heaviest Build 119 | 10 30 51 102 119 39 39 39 39 52 52 57 65 36 46 Greatest Support 144 | 40 40 40 60 80 60 40 40 40 73 60 69 144 50 96 Greatest Overweight (x) 10 | . 1 1 1 1 1 1 . . 1 . 3 5 . 10 Average Overweight (x) . | . . . . 1 . . . . . . . . . . Largest Inventory Capacity 25 | 8 15 20 25 25 25 15 15 15 15 15 15 15 5 10 Average Capacity 18 | 7 14 15 22 25 15 15 15 15 15 15 15 13 5 9 Most Carried 25 | . 14 16 25 25 25 15 14 15 15 13 14 15 5 10 Average Carried 16 | . 7 14 22 24 14 14 14 14 12 12 12 12 5 6 Final Capacity 25 | 8 15 20 25 25 15 15 15 15 15 15 15 5 5 5 Final Carried 25 | . 14 16 25 25 15 14 14 15 12 13 13 5 5 5 Class Distribution -------------------- 43% | Mutant 27% | Hacker-Mutant 12% | Scavenger-Mutant 5% | Hacker-Gladiator 5% | Hacker-Sprinter Dominant Class ---------------- Mutant | -10/Materials Mutant | -10/Mines Mutant | -9/Materials Mutant | -8/Materials Hacker-Mutant | -7/Factory Hacker-Mutant | -7/Storage Hacker-Mutant | -7/Recycling Hacker-Mutant | -7/Scraptown Hacker-Sprinter | -5/Factory Hacker-Mutant | -5/Waste Hacker-Mutant | -5/Factory Hacker-Mutant | -4/Factory Hacker-Scout | -3/Research Scavenger-Scout | -3/Testing Resources | -11 -10 -10 -9 -8 -7 -7 -7 -7 -5 -5 -5 -4 -3 -3 ----------- Run | Yrd Mat Min Mat Mat Fac Sto Rec Scr Fac Was Fac Fac Res Tes Matter Collected 6241 | 242 259 321 1068 1178 359 126 57 125 441 . 408 1002 45 610 Remotely . | . . . . . . . . . . . . . . . Salvage Created 10021 | . 570 143 1552 1997 488 133 . . 1266 . 786 2018 70 998 Parts 546 | . 42 4 115 103 16 4 . . 53 . 44 112 5 48 Haulers Intercepted 19 | . 1 . 5 6 1 . . . 3 . . 2 . 1 Recyclers Shooed 8 | . . 1 . 2 . . . . . . . 5 . . Parts Field Recycled . | . . . . . . . . . . . . . . . Retrieved Matter . | . . . . . . . . . . . . . . . Parts Self-Destructed . | . . . . . . . . . . . . . . . Prevented . | . . . . . . . . . . . . . . . Kills | -11 -10 -10 -9 -8 -7 -7 -7 -7 -5 -5 -5 -4 -3 -3 ------- Run | Yrd Mat Min Mat Mat Fac Sto Rec Scr Fac Was Fac Fac Res Tes Combat Hostiles Destroyed 169 | . 14 7 34 32 3 3 . . 18 . 15 29 . 14 Melee 53 | . . . . . 3 2 . . 14 . 13 14 . 7 Guns 78 | . 14 4 27 32 . . . . . . . . . 1 Cannons 2 | . . . . . . . . . . . . . . 2 AOE 35 | . . 3 7 . . . . . 4 . 2 15 . 4 Classes Destroyed 17 | . 6 1 4 2 1 . . . . . 1 2 . . Worker 18 | . 1 . . 2 5 . . . . . 3 6 . 1 Builder 9 | . . . . 2 . 1 . . . . . 5 . 1 Tunneler 6 | . . . 2 . 1 . . . . . 1 2 . . Hauler 19 | . 1 . 5 6 1 . . . 3 . . 2 . 1 Recycler 8 | . . . 1 1 . . . . 1 . . 4 . 1 Mechanic 1 | . . . . . . . . . . . . 1 . . Operator 10 | . 1 . 1 2 2 . . . 1 . . 1 1 1 Watcher 23 | . 1 . 3 5 6 2 . . 3 . 1 1 1 . Swarmer 44 | . 3 . 10 7 . 3 . . 7 . 4 6 . 4 Cutter 4 | . . . . . . . . . . . . 4 . . Grunt 53 | . 11 3 15 12 . . . . 2 . 3 7 . . Brawler 2 | . . . 1 1 . . . . . . . . . . Duelist 1 | . . . . . . . . . . . 1 . . . Sentry 22 | . . . 8 11 . . . . . . 1 2 . . Hunter 7 | . . . . 1 . . . . . . 2 4 . . Programmer 31 | . . . . . 3 . . . 9 . 4 6 . 9 Protovariant H 1 | . . . . . . . . . . . . . . 1 Assembled 4 | . . 4 . . . . . . . . . . . . Best Kill Streak 10 | . 4 3 6 7 2 4 . . 7 . 5 10 1 5 Combat Bots Only 8 | . 4 3 5 6 1 3 . . 6 . 3 8 . 4 Max Kills in Single Turn 3 | . 1 1 3 2 1 1 . . 2 . 3 3 1 3 Gunslinging 1 | . . . 1 . . . . . . . . . . . Exploded 3 | . . 1 3 . . . . . 2 . 1 3 . 2 Melee 1 | . . . . . 1 1 . . 1 . 1 1 . 1 Uniques/NPCs Destroyed . | . . . . . . . . . . . . . . . Combat | -11 -10 -10 -9 -8 -7 -7 -7 -7 -5 -5 -5 -4 -3 -3 -------- Run | Yrd Mat Min Mat Mat Fac Sto Rec Scr Fac Was Fac Fac Res Tes Hostile Shots Fired 1385 | . 87 29 168 179 45 79 . . 128 . 132 290 2 246 Missed 439 | . 19 8 50 48 15 34 . . 53 . 37 94 2 79 Hits 946 | . 68 21 118 131 30 45 . . 75 . 95 196 . 167 Melee 4 | . . . . 2 . . . . . . . 2 . . Projectile 942 | . 68 21 118 129 30 45 . . 75 . 95 194 . 167 AOE 5 | . . 3 . . . . . . 1 . 1 . . . Critical Strikes 49 | . . . 4 5 2 1 . . 3 . 1 9 . 24 Part Disruptions 2 | . . 1 . . . . . . . . . . . 1 Damage Taken 17471 | . 800 470 1462 1884 574 516 . . 1674 . 1827 4332 . 3932 Core 3462 | . 80 108 131 103 68 61 . . 307 . 560 728 . 1316 Absorbed by Shields 119 | . . . 28 68 . . . . 12 . . 11 . . Redirected to Shielding 106 | . . . . . . . . . 35 . 71 . . . Regen/Repaired (Parts) 1362 | . 161 . 22 460 104 121 . . 494 . . . . . Core Remaining (%) 57 | 100 . 24 67 81 . . . 81 . . 13 36 . . Volleys Fired 440 | . 71 31 120 167 . . . . 10 . 4 21 . 16 Largest 2 | . 2 2 2 2 . . . . 1 . 1 1 . 1 Hottest 100 | . 40 50 53 46 . . . . 90 . 90 46 . 100 Shots Fired 819 | . 142 59 236 331 . . . . 10 . 4 21 . 16 Gun 768 | . 142 53 231 331 . . . . . . . . . 11 Cannon 12 | . . . . . . . . . 8 . 1 . . 3 Launcher 39 | . . 6 5 . . . . . 2 . 3 21 . 2 Special . | . . . . . . . . . . . . . . . Kinetic 771 | . 142 53 231 331 . . . . . . . . . 14 Thermal 9 | . . . . . . . . . 8 . 1 . . . Explosive 39 | . . 6 5 . . . . . 2 . 3 21 . 2 Electromagnetic . | . . . . . . . . . . . . . . . Robot Hit Streak 26 | . 14 11 23 26 . . . . 6 . 1 15 . 17 Robot Miss Streak 5 | . 3 3 5 4 . . . . 1 . 2 3 . 4 Penetration Max 1 | . . . . . . . . . . . . . . 1 Secondary Targets 16 | . 3 . 5 8 . . . . . . . . . . Max Gunslinging Chain 1 | . 1 . 1 1 . . . . . . . . . . Shots Hit Robots 866 | . 93 36 173 252 33 7 1 . 64 . 50 107 4 46 Core Hits 372 | . 40 21 68 92 7 2 . . 26 . 27 64 2 23 Critical Kills 8 | . 1 . 2 . . 1 . . 3 . . . . 1 Critical Parts Destroyed 23 | . . . 2 1 4 . . . 4 . . . . 12 Critical Strikes 56 | . 1 . 4 2 6 1 . . 8 . 4 9 . 21 Destroy 20 | . 1 . 4 2 . . . . . . . . . 13 Blast 1 | . . . . . . . . . . . . . . 1 Smash 12 | . . . . . 4 1 . . 7 . . . . . Sever 22 | . . . . . 2 . . . 1 . 4 8 . 7 Impale 1 | . . . . . . . . . . . . 1 . . Melee Attacks 568 | . . . . 2 73 38 1 . 133 . 91 141 10 79 Impact 133 | . . . . . 50 38 1 . 44 . . . . . Slashing 414 | . . . . 2 23 . . . 89 . 91 135 1 73 Piercing 21 | . . . . . . . . . . . . 6 9 6 Sneak Attacks 47 | . . . . . 9 1 1 . 8 . 2 22 1 3 Combat Hostiles 1 | . . . . . . . . . 1 . . . . . Follow-up Attacks 40 | . . . . . 2 5 . . 13 . 7 9 . 4 Damage Inflicted 28251 | . 802 722 3180 4055 1779 379 61 . 3561 . 2497 8138 237 2840 Guns 7894 | . 784 449 2658 3916 . . . . . . . . . 87 Cannons 389 | . . . . . . . . . . . . . . 389 Explosions 5042 | . . 262 491 . . . . . 323 . 344 3042 . 580 Melee 14727 | . . . . . 1779 379 61 . 3238 . 2153 5096 237 1784 Ramming 199 | . 18 11 31 139 . . . . . . . . . . Kinetic 8283 | . 784 449 2658 3916 . . . . . . . . . 476 Thermal . | . . . . . . . . . . . . . . . Explosive 5042 | . . 262 491 . . . . . 323 . 344 3042 . 580 Electromagnetic . | . . . . . . . . . . . . . . . Impact 3233 | . . . . . 1275 379 61 . 1518 . . . . . Slashing 11026 | . . . . . 504 . . . 1720 . 2153 4865 . 1784 Piercing 468 | . . . . . . . . . . . . 231 237 . Highest Corruption 28 | . . . . . 8 8 8 . 7 10 13 10 . 28 Average Corruption 7 | . . . . . 7 8 8 . 3 7 12 5 . 12 Corruption Purged 7 | . . . . . . . . . 7 . . . . . Corruption Blocked . | . . . . . . . . . . . . . . . Effects 184 | . . . . . 53 10 3 . 32 2 35 32 . 17 Message Errors 41 | . . . . . 15 3 1 . 6 . 5 8 . 3 Matter Fused 59 | . . . . . 17 4 2 . 10 1 11 9 . 5 Heat Flow Errors 22 | . . . . . 6 1 . . 5 . 3 5 . 2 Energy Discharges 18 | . . . . . 3 . . . 5 . 6 3 . 1 Parts Rejected 1 | . . . . . . . . . . . . . . 1 Parts Fused 2 | . . . . . 1 . . . . . . 1 . . Data Loss (minor) 24 | . . . . . 6 2 . . 5 . 6 4 . 1 Data Loss (major) 7 | . . . . . 4 . . . . . 1 1 . 1 Alerts 6 | . . . . . 1 . . . 1 . 2 1 . 1 Misdirections 4 | . . . . . . . . . . 1 1 . . 2 Overload Shots . | . . . . . . . . . . . . . . . Overflow Damage 3157 | . . 19 . 3 706 184 21 . 709 . 108 1062 . 345 Projectiles 109 | . . . . . . . . . . . . . . 109 Explosions 285 | . . 19 . . . . . . 21 . . 208 . 37 Melee 2763 | . . . . 3 706 184 21 . 688 . 108 854 . 199 Knockbacks 14 | . . . . . 6 3 1 . 3 . . . . 1 Impact 13 | . . . . . 6 3 1 . 3 . . . . . Kinetic 1 | . . . . . . . . . . . . . . 1 Secondary . | . . . . . . . . . . . . . . . Self-Inflicted Damage 882 | . . 52 69 . . . . . 11 . 20 598 . 132 Shots 20 | . . 2 3 . . . . . 1 . 1 11 . 2 Rammed 24 | . 5 3 5 10 . . . . . . . . . 1 Targets Rammed 26 | . 6 3 5 11 . . . . . . . . . 1 Kicked . | . . . . . . . . . . . . . . . Crushed 2 | . 1 . . 1 . . . . . . . . . . Highest Temperature 473 | . 146 32 59 345 247 141 . . 279 . 473 222 4 220 Average Temperature 74 | . 29 10 12 84 103 73 . . 90 . 120 79 2 23 Received Heat Transfer 2935 | . 417 194 627 695 99 90 . . 108 . 336 369 . . Effects 7 | . . . . 1 . . . . . . 6 . . . Energy Bleed 3 | . . . . 1 . . . . . . 2 . . . Interference 2 | . . . . . . . . . . . 2 . . . Matter Decay 1 | . . . . . . . . . . . 1 . . . Damage (minor) 1 | . . . . . . . . . . . 1 . . . Siege Activations . | . . . . . . . . . . . . . . . Martial Activations . | . . . . . . . . . . . . . . . Shielding Activations . | . . . . . . . . . . . . . . . Robots Disrupted . | . . . . . . . . . . . . . . . Combat Hostiles . | . . . . . . . . . . . . . . . Robots Corrupted 12 | . . . . 1 7 4 . . . . . . . . Combat Hostiles 1 | . . . . . . 1 . . . . . . . . Parts Fried 21 | . . . . 3 11 3 . . 4 . . . . . Impact Corruptions 52 | . . . . 1 26 10 1 . 14 . . . . . Robots Melted . | . . . . . . . . . . . . . . . Combat Hostiles . | . . . . . . . . . . . . . . . Parts Melted . | . . . . . . . . . . . . . . . Heat Transferred . | . . . . . . . . . . . . . . . Parts Sabotaged . | . . . . . . . . . . . . . . . Parts Stolen . | . . . . . . . . . . . . . . . Parts Stripped . | . . . . . . . . . . . . . . . Power Chain Reactions . | . . . . . . . . . . . . . . . Alert | -11 -10 -10 -9 -8 -7 -7 -7 -7 -5 -5 -5 -4 -3 -3 ------- Run | Yrd Mat Min Mat Mat Fac Sto Rec Scr Fac Was Fac Fac Res Tes Maximum Alert Level 2 | . . . 1 1 . . . . 2 . . 2 1 . Low Security (%) 86 | 100 100 100 64 99 100 100 100 . 85 100 100 35 93 100 Level 1 10 | . . . 35 . . . . . 11 . . 35 6 . Level 2 2 | . . . . . . . . . 2 . . 29 . . Level 3 . | . . . . . . . . . . . . . . . Level 4 . | . . . . . . . . . . . . . . . Level 5 . | . . . . . . . . . . . . . . . High Security . | . . . . . . . . . . . . . . . Max Security . | . . . . . . . . . . . . . . . Peak Influence 636 | . 108 69 336 200 127 78 106 . 439 149 109 636 331 165 Initial 329 | . . 9 . 79 . 33 26 . . 149 97 7 329 58 Average 95 | . 27 6 187 51 47 26 79 . 77 144 46 292 158 72 Influence Increases 7516 | . 470 192 1064 1022 567 205 90 . 1289 . 550 1447 65 555 Destroy 0b10 Robot/C 3360 | . 280 120 680 640 60 60 . . 360 . 300 580 . 280 Destroy 0b10 Robot/NC 470 | . 20 . 60 90 75 15 . . 40 . 25 110 10 25 Destroy Leader 804 | . 64 30 176 182 44 14 . . 82 . 52 126 2 32 Allied During Kill 9 | . . 9 . . . . . . . . . . . . Trap Triggered on 0b10 30 | . . . . . . . . . . . 30 . . . Successful Hack 364 | . 46 . 30 27 51 14 . . 134 . 42 10 . 10 Select Force Hacks 180 | . 60 . 30 . . . 90 . . . . . . . Disable Machine 315 | . . . 30 45 60 . . . . . . 60 15 105 Destroy Structure 649 | . . 33 28 8 22 12 . . 118 . 56 306 8 58 Partial Spotted 240 | . . . . 15 45 . . . 150 . . . 30 . Lose Combat Pursuer 1095 | . . . 30 15 210 90 . . 405 . 45 255 . 45 Influence Decreases 7516 | . 444 218 875 1211 494 209 73 86 863 287 672 836 589 659 Entered New Map 970 | . . 17 . 110 . 40 43 86 . 277 42 10 299 46 Time Decay 4235 | . 344 161 695 621 484 159 30 . 465 10 360 456 140 310 Lost Part 997 | . 40 . 30 30 . 10 . . 98 . 126 370 . 293 Lost Ally 60 | . . 40 . . 10 . . . . . . . . 10 Purge Threat 1254 | . 60 . 150 450 . . . . 300 . 144 . 150 . Squads Dispatched 68 | . 4 . 2 5 12 1 . . 17 . 6 16 1 4 Investigation 29 | . 3 . 1 1 5 1 . . 9 . 3 5 . 1 Extermination 17 | . . . . . 5 . . . 4 . 3 3 . 2 Reinforcement 16 | . 1 . 1 1 2 . . . 4 . . 5 1 1 Assault . | . . . . . . . . . . . . . . . Garrison 6 | . . . . 3 . . . . . . . 3 . . Intercept . | . . . . . . . . . . . . . . . Searches Triggered . | . . . . . . . . . . . . . . . Construction Impeded 2 | . . . . 1 . . . . . . . 1 . . Haulers Reinforced 3 | . . . . . 1 . . . 2 . . . . . Active Scanning Responses . | . . . . . . . . . . . . . . . Cargo Convoy Interrupts . | . . . . . . . . . . . . . . . Stealth | -11 -10 -10 -9 -8 -7 -7 -7 -7 -5 -5 -5 -4 -3 -3 --------- Run | Yrd Mat Min Mat Mat Fac Sto Rec Scr Fac Was Fac Fac Res Tes Distress Signals 22 | . 1 . 3 3 3 2 . . 2 . 1 4 . 3 Communications Jammed . | . . . . . . . . . . . . . . . Distress Signals . | . . . . . . . . . . . . . . . Times Spotted 400 | . 25 15 53 66 36 17 . . 71 5 26 54 4 28 Peak Tracking Total 13 | . 3 3 6 6 8 5 . . 13 5 4 6 3 7 Tactical Retreats 48 | . . 1 2 1 9 6 . . 17 . 2 7 . 3 Traps | -11 -10 -10 -9 -8 -7 -7 -7 -7 -5 -5 -5 -4 -3 -3 ------- Run | Yrd Mat Min Mat Mat Fac Sto Rec Scr Fac Was Fac Fac Res Tes Traps Triggered 22 | . 2 . . 1 6 . . . 5 . 3 4 . 1 Indirectly . | . . . . . . . . . . . . . . . Trap Hack Attempts . | . . . . . . . . . . . . . . . Triggered . | . . . . . . . . . . . . . . . Disarmed . | . . . . . . . . . . . . . . . Reprogrammed 6 | . . . . . . . . . . . 6 . . . Reused 3 | . . . . . . . . . . . 3 . . . Traps Extracted . | . . . . . . . . . . . . . . . Installed . | . . . . . . . . . . . . . . . Triggered 3 | . . . . . . . . . . . 3 . . . Machines | -11 -10 -10 -9 -8 -7 -7 -7 -7 -5 -5 -5 -4 -3 -3 ---------- Run | Yrd Mat Min Mat Mat Fac Sto Rec Scr Fac Was Fac Fac Res Tes Machines Disabled 21 | . . . 2 3 4 . . . . . . 4 1 7 Max in Single Turn 1 | . . . 1 1 1 . . . . . . 1 1 1 Garrison Access 4 | . . . . . 1 1 . . 1 . 1 . . . Machines Repaired . | . . . . . . . . . . . . . . . Machines Dismantled 1 | . . . 1 . . . . . . . . . . . Machines Sabotaged . | . . . . . . . . . . . . . . . Overloaded Fab Kills . | . . . . . . . . . . . . . . . Hacking | -11 -10 -10 -9 -8 -7 -7 -7 -7 -5 -5 -5 -4 -3 -3 --------- Run | Yrd Mat Min Mat Mat Fac Sto Rec Scr Fac Was Fac Fac Res Tes Machines Accessed 113 | . 11 . 10 14 20 6 5 1 22 . 12 7 1 4 Terminals 66 | . 8 . 7 12 10 4 1 . 10 . 8 2 1 3 Fabricators 9 | . . . . . 5 . . . 2 . 1 . . 1 Repair Stations 8 | . 1 . 1 1 1 1 . . 3 . . . . . Recycling Units 19 | . 2 . 1 . 1 . 3 . 5 . 2 5 . . Scanalyzers 4 | . . . 1 1 1 . . . 1 . . . . . Garrison Access 5 | . . . . . 2 1 . . 1 . 1 . . . Total Hacks 308 | . 33 . 31 43 49 23 7 7 69 . 28 9 2 7 Successful 186 | . 18 . 18 25 23 16 5 7 40 . 23 7 1 3 Failed 121 | . 15 . 12 18 26 7 2 . 29 . 5 2 1 4 Catastrophic 11 | . . . 1 3 2 . . . 3 . . 1 . 1 Database Lockouts 1 | . . . 1 . . . . . . . . . . . Manual 147 | . 24 . 17 19 9 15 6 . 23 . 20 7 . 7 Terminals 191 | . 26 . 25 35 20 17 2 . 31 . 23 4 2 6 Fabricators 24 | . . . . . 16 . . . 5 . 2 . . 1 Repair Stations 42 | . 5 . 2 6 6 4 . . 19 . . . . . Recycling Units 24 | . 2 . 1 . 1 . 4 . 9 . 2 5 . . Scanalyzers 12 | . . . 3 2 3 . . . 4 . . . . . Garrison Access 7 | . . . . . 3 2 . . 1 . 1 . . . Terminal Hacks 60 | . 4 . 6 11 3 5 1 7 7 . 14 1 1 . Record 8 | . . . . . . . 1 7 . . . . . . Part Schematic 2 | . . . . . . . . . . . 2 . . . Robot Schematic 1 | . 1 . . . . . . . . . . . . . Robot Analysis 4 | . 1 . 2 . 1 . . . . . . . . . Prototype ID Bank 6 | . 1 . 1 4 . . . . . . . . . . Open Door 2 | . . . . . . 2 . . . . . . . . Level Access Points 1 | . . . . . . . . . . . 1 . . . Branch Access Points 1 | . . . . . . . . . 1 . . . . . Machine Index 1 | . . . . . . . . . 1 . . . . . Terminal Index 2 | . . . . . 1 . . . . . 1 . . . Fabricator Index 1 | . . . . . . . . . . . 1 . . . Repair Station Index 1 | . . . . . . . . . . . 1 . . . Recycling Unit Index 1 | . . . . . . . . . . . 1 . . . Alert Level 5 | . . . 1 1 1 1 . . 1 . . . . . Unreport Threat 11 | . 1 . 1 3 . . . . 2 . 3 . 1 . Locate Traps 3 | . . . . 1 . . . . 2 . . . . . Reprogram Traps 1 | . . . . . . . . . . . 1 . . . Recall Investigation 3 | . . . . . . 1 . . . . 1 1 . . Hauler Manifests 3 | . . . 1 1 . 1 . . . . . . . . Zone Layout 3 | . . . . 1 . . . . . . 2 . . . Fabricator Hacks 17 | . . . . . 11 . . . 4 . 2 . . . Load Schematic 9 | . . . . . 6 . . . 2 . 1 . . . Build 8 | . . . . . 5 . . . 2 . 1 . . . Repair Station Hacks 35 | . 4 . 2 6 4 4 . . 15 . . . . . Scan Component 18 | . 2 . 1 3 2 2 . . 8 . . . . . Repair 17 | . 2 . 1 3 2 2 . . 7 . . . . . Recycling Unit Hacks . | . . . . . . . . . . . . . . . Scanalyzer 9 | . . . 3 2 2 . . . 2 . . . . . Insert Component 4 | . . . 1 1 1 . . . 1 . . . . . Analyze 5 | . . . 2 1 1 . . . 1 . . . . . Garrison Access Hacks 4 | . . . . . 1 1 . . 1 . 1 . . . Seal Access 4 | . . . . . 1 1 . . 1 . 1 . . . Unauthorized Hacks 60 | . 10 . 7 6 2 6 3 . 11 . 6 6 . 3 Terminals 42 | . 8 . 6 6 2 6 . . 7 . 4 1 . 2 Track 6 | . . . . . . 2 . . 4 . . . . . Assimilate 6 | . . . . . 2 . . . . . 1 1 . 2 Botnet 10 | . 2 . 1 1 . 1 . . 3 . 2 . . . Operators 2 | . . . . . . 1 . . . . 1 . . . Skim 18 | . 6 . 5 5 . 2 . . . . . . . . Fabricators 1 | . . . . . . . . . . . . . . 1 Liberate 1 | . . . . . . . . . . . . . . 1 Repair Stations . | . . . . . . . . . . . . . . . Recycling Units 17 | . 2 . 1 . . . 3 . 4 . 2 5 . . Tunnel 6 | . 2 . 1 . . . 3 . . . . . . . Fedlink 11 | . . . . . . . . . 4 . 2 5 . . Scanalyzers . | . . . . . . . . . . . . . . . Garrison Access . | . . . . . . . . . . . . . . . Data Cores Recovered 3 | . . . . 2 . . . . 1 . . . . . Used 1 | . . . . . . . . . 1 . . . . . Hacking Detections 77 | . 8 . 8 11 19 2 1 . 13 . 9 2 1 3 Full Trace Events 13 | . . . 1 . 5 1 . . 5 . 1 . . . Feedback Events 1 | . . . . . . . . . 1 . . . . . Corruption 1 | . . . . . . . . . 1 . . . . . Feedback Blocked . | . . . . . . . . . . . . . . . Robot Schematics Acquired 1 | . 1 . . . . . . . . . . . . . Robots Built . | . . . . . . . . . . . . . . . Authchips . | . . . . . . . . . . . . . . . Time . | . . . . . . . . . . . . . . . Total Robot Build Rating . | . . . . . . . . . . . . . . . Part Schematics Acquired 6 | . . . 1 1 1 . . . 1 . 2 . . . Parts Built 9 | . . . . . 5 . . . 2 . 2 . . . Authchips 1 | . . . . . 1 . . . . . . . . . Time 421 | . . . . . 295 . . . 79 . 47 . . . Total Part Build Rating 39 | . . . . . 19 . . . 10 . 10 . . . Parts Repaired 17 | . 2 . 1 3 2 2 . . 7 . . . . . Time 987 | . 52 . 32 115 140 140 . . 508 . . . . . Parts Recycled . | . . . . . . . . . . . . . . . Recycled Matter . | . . . . . . . . . . . . . . . Retrieved Matter . | . . . . . . . . . . . . . . . Retrieved Components . | . . . . . . . . . . . . . . . Parts Scanalyzed 4 | . . . 1 1 1 . . . 1 . . . . . Part Schematics Acquired 4 | . . . 1 1 1 . . . 1 . . . . . Parts Damaged . | . . . . . . . . . . . . . . . Bothacking | -11 -10 -10 -9 -8 -7 -7 -7 -7 -5 -5 -5 -4 -3 -3 ------------ Run | Yrd Mat Min Mat Mat Fac Sto Rec Scr Fac Was Fac Fac Res Tes Used RIF Installer . | . . . . . . . . . . . . . . . Robots Hacked . | . . . . . . . . . . . . . . . Non-combat . | . . . . . . . . . . . . . . . Combat . | . . . . . . . . . . . . . . . Robot Hacks Applied . | . . . . . . . . . . . . . . . Relay Couplers Released . | . . . . . . . . . . . . . . . Fabnet Peak Effective % . | . . . . . . . . . . . . . . . Robots Rewired . | . . . . . . . . . . . . . . . Allies Hacked . | . . . . . . . . . . . . . . . Hacks Repelled . | . . . . . . . . . . . . . . . Allies | -11 -10 -10 -9 -8 -7 -7 -7 -7 -5 -5 -5 -4 -3 -3 -------- Run | Yrd Mat Min Mat Mat Fac Sto Rec Scr Fac Was Fac Fac Res Tes Total Allies 9 | . . 3 . . 2 2 . . . . 1 . . 1 Largest Group 3 | . . 3 . . 2 2 . . . . 1 1 . 1 Highest-Rated Group 62 | . . 40 . . 36 62 . . . . 26 26 . 26 Highest-Rated Ally 31 | . . 16 . . 26 31 . . . . 26 26 . 26 Total Orders . | . . . . . . . . . . . . . . . Ally Attacks 24 | . . 24 . . . . . . . . . . . . Total Damage 313 | . . 313 . . . . . . . . . . . . Kills 4 | . . 4 . . . . . . . . . . . . Allies Corrupted . | . . . . . . . . . . . . . . . Allies Melted . | . . . . . . . . . . . . . . . Intel | -11 -10 -10 -9 -8 -7 -7 -7 -7 -5 -5 -5 -4 -3 -3 ------- Run | Yrd Mat Min Mat Mat Fac Sto Rec Scr Fac Was Fac Fac Res Tes Active Infowar (turns) 4426 | . . . . . 1757 291 . . 82 . 245 1061 280 710 Optics 1185 | . . . . . . . . . . . . 195 280 710 Sensors 3796 | . . . . . 1690 254 . . . . 198 939 280 435 Terrain 745 | . . . . . . . . . . . 47 125 280 293 Structural 75 | . . . . . . . . . . . . 75 . . ECM 188 | . . . . . 67 37 . . 82 . . . . 2 Robot Analysis Total 4 | . 1 . 2 . 1 . . . . . . . . . Derelict Logs Recovered 1 | . . 1 . . . . . . . . . . . . Drone Launches . | . . . . . . . . . . . . . . . Drone Recoveries . | . . . . . . . . . . . . . . . Exploration | -11 -10 -10 -9 -8 -7 -7 -7 -7 -5 -5 -5 -4 -3 -3 ------------- Run | Yrd Mat Min Mat Mat Fac Sto Rec Scr Fac Was Fac Fac Res Tes Turns Passed 17890 | 76 1371 1353 3098 4065 1859 376 60 407 1612 36 1011 1576 280 710 Spaces Moved 13297 | 44 604 592 1260 1374 2691 476 168 1029 1852 74 950 1308 215 660 Core 15 | 2 . . . . . . . . . . . 4 . 9 Treads 4206 | 42 604 592 1260 1374 . . . . . . 131 203 . . Legs 189 | . . . . . . . . . . . . 88 . 101 Wheels 3 | . . . . . . . . . . . 3 . . . Hover 8884 | . . . . . 2691 476 168 1029 1852 74 816 1013 215 550 Flight . | . . . . . . . . . . . . . . . Fastest Speed 15 | 50 160 160 160 240 15 34 34 34 16 38 38 45 44 30 Average Speed 92 | 155 171 171 203 240 34 36 34 34 35 38 71 77 48 57 Slowest Speed 550 | 160 240 240 240 240 102 98 34 34 100 38 280 400 52 550 Overloaded Moves 29 | . . . . . 15 . . . 8 . 6 . . . Propulsion Burnouts . | . . . . . . . . . . . . . . . Robots Hopped . | . . . . . . . . . . . . . . . Potential Cave-ins . | . . . . . . . . . . . . . . . Cave-ins Triggered . | . . . . . . . . . . . . . . . Exploration Rate (%) 56 | 4 89 97 93 88 59 61 34 75 41 83 26 36 4 59 Regions Visited 14 Branch Regions 5 Pre-discovered Areas 14 | . 3 . 3 3 . 1 3 . 1 . . . . . Known Exits Taken 10 | . 1 1 1 . 1 1 1 1 . . 1 1 1 . Unknown Exits Taken 2 | 1 . . . 1 . . . . . . . . . . Scrap Searched 5 | . . 1 . . . . . 4 . . . . . . Spaces Dug 123 | . . . . 2 21 12 . . 40 . 11 20 4 13 Terrain Destroyed 464 | . . 47 27 2 21 12 . . 60 . 31 225 4 35 Melee 116 | . . . . 2 21 12 . . 34 . 10 20 4 13 Projectile 9 | . . . . . . . . . 8 . 1 . . . AOE 339 | . . 47 27 . . . . . 18 . 20 205 . 22 Terrain Rammed . | . . . . . . . . . . . . . . . Walls Destroyed . | . . . . . . . . . . . . . . . Machines Disabled . | . . . . . . . . . . . . . . . Actions | -11 -10 -10 -9 -8 -7 -7 -7 -7 -5 -5 -5 -4 -3 -3 --------- Run | Yrd Mat Min Mat Mat Fac Sto Rec Scr Fac Was Fac Fac Res Tes Total 17337 | 49 817 869 1565 1799 3532 623 168 1085 2682 81 1180 1654 375 858 Wait 2450 | . 105 232 84 189 675 111 . 52 632 6 95 68 149 52 Move 13284 | 43 603 591 1259 1373 2690 475 167 1028 1852 73 949 1307 214 660 Hop . | . . . . . . . . . . . . . . . Pick Up 105 | . 15 1 23 15 17 . . 2 10 1 4 11 . 6 Fast Attach 125 | 6 3 1 7 4 13 . . 1 10 . 14 37 3 26 Attach 66 | . 3 1 3 7 8 2 . . 9 1 6 17 . 9 Detach 27 | . 1 . 2 . 4 . . . 1 . 2 10 . 7 Swap 135 | . 7 8 26 13 18 7 . . 25 . 11 16 . 4 Drop 125 | . 3 1 32 18 33 . . 2 9 . . 19 . 8 Fire 440 | . 71 31 120 167 . . . . 10 . 4 21 . 16 Melee 498 | . . . . 2 66 28 1 . 112 . 81 130 9 69 Ram 2 | . . . . . . . . . . . 1 . . 1 Kick . | . . . . . . . . . . . . . . . Crush 25 | . 6 3 5 11 . . . . . . . . . . Escape Stasis 51 | . . . . . 8 . . . 12 . 13 18 . . Rewire . | . . . . . . . . . . . . . . . Trap . | . . . . . . . . . . . . . . . Miscellaneous 4 | . . . 4 . . . . . . . . . . . Route ------- -11/Scrapyard -10/Materials (discovered 5 exits: *Mat x3 / *Min / Sub) -10/Mines (discovered 4 exits: *Mat x2 / [*Exi] / Sub) -9/Materials (discovered 5 exits: *Mat x3 / [*Min x2]) -8/Materials -7/Factory (discovered 4 exits: *Fac x2 / *Sto / *Low) -7/Storage -7/Recycling (discovered 2 exits: Fac / *Scr) -7/Scraptown -5/Factory (discovered 3 exits: *Fac / Upp x2) -5/Waste -5/Factory (discovered 5 exits: *Fac x4 / *Upp) -4/Factory (discovered 2 exits: *Res x2) -3/Research -3/Testing History --------- Turn | Location | Event 7 | -11/Scrapyard | Discovered new exit (range 14) 77 | -11/Scrapyard | Entered Materials 190 | -10/Materials | Discovered new exit (range 13) 301 | -10/Materials | Build established: Mutant 375 | -10/Materials | Discovered new exit (range 16) 623 | -10/Materials | Discovered new exit (range 16) 867 | -10/Materials | Lost 3 parts (1p1n1u) 1160 | -10/Materials | Learned location of 1 exit from Recycling 1192 | -10/Materials | Discovered new exit (range 15) 1195 | -10/Materials | Loaded intel: 10 trap records 1219 | -10/Materials | Identified exit to Materials 1219 | -10/Materials | Identified exit to Subcaves 1219 | -10/Materials | Identified exit to Mines 1233 | -10/Materials | Learned 2 Mines zone layouts 1236 | -10/Materials | Learned location of Mines (-9) 1237 | -10/Materials | Learned 2 Storage zone layouts 1239 | -10/Materials | Learned Storage stockpile data 1241 | -10/Materials | Learned location of 1 exit from Recycling 1251 | -10/Materials | Repaired Lgt. Assault Rifle 1278 | -10/Materials | Repaired Lgt. Treads 1279 | -10/Materials | Learned location of 2 exits from Mines 1448 | -10/Materials | Entered Mines 1459 | -10/Mines | Core integrity fell below 50% 1514 | -10/Mines | Assisted by bots powering up and referring to "LRC-V3" 1634 | -10/Mines | Assembled infested the area 1642 | -10/Mines | Lost 3 allies 1790 | -10/Mines | Learned Materials emergency access door positions 2199 | -10/Mines | Discovered exit to Materials (range 8) 2221 | -10/Mines | Deemed a non-threat by the Exiles lab entrance 2221 | -10/Mines | Discovered new exit (range 5) 2573 | -10/Mines | Joined a pair of Derelicts in attacking an 0b10 outpost 2801 | -10/Mines | Entered Materials 2801 | -9/Materials | Evolved 2 slots: Propulsion x1, Utility x1 3119 | -9/Materials | Discovered new exit (range 6) 3204 | -9/Materials | Build established: Scavenger-Mutant 3404 | -9/Materials | Discovered new exit (range 10) 3826 | -9/Materials | Repaired Shield Generator 3949 | -9/Materials | Build established: Mutant 4199 | -9/Materials | Learned Storage stockpile data 4324 | -9/Materials | Learned Storage trap positions 4371 | -9/Materials | Learned Storage stockpile data 4410 | -9/Materials | Learned Storage stockpile data 4458 | -9/Materials | Identified exit to Materials 4499 | -9/Materials | Discovered new exit (range 8) 4584 | -9/Materials | Learned location of Storage (-7) 4638 | -9/Materials | Central database locked down 5899 | -9/Materials | Entered another Materials area 5899 | -8/Materials | Evolved 2 slots: Propulsion x1, Utility x1 6990 | -8/Materials | Repaired Imp. Assault Rifle 7017 | -8/Materials | Repaired Lgt. Treads 7057 | -8/Materials | Repaired Hrd. Medium Armor Plating 7166 | -8/Materials | Discovered new exit (range 16) 7276 | -8/Materials | Learned Factory security intel 7344 | -8/Materials | Learned location of Zion (-7) 7401 | -8/Materials | Learned location of 1 exit from Extension 7450 | -8/Materials | Learned location of 1 exit from Lower Caves 7488 | -8/Materials | Learned location of 1 exit from Storage 7594 | -8/Materials | Learned location of Recycling (-7) 7831 | -8/Materials | Garrison activated, responded to threat 8745 | -8/Materials | Build established: Scavenger-Mutant 9964 | -8/Materials | Entered Factory 9964 | -7/Factory | Evolved 2 slots: Propulsion x1, Utility x1 10058 | -7/Factory | Discovered new exit (range 8) 10068 | -7/Factory | Identified exit to Factory 10263 | -7/Factory | Build established: Hacker-Mutant 10439 | -7/Factory | Discovered new exit (range 6) 10441 | -7/Factory | Identified exit to Lower Caves 10683 | -7/Factory | Fabricated Cld. Airjet (x1) 10783 | -7/Factory | Fabricated Cld. Airjet (x1) 11041 | -7/Factory | Discovered exit to Factory (range 13) 11075 | -7/Factory | Fabricated Cld. Airjet? 11392 | -7/Factory | Discovered new exit (range 8) 11394 | -7/Factory | Identified exit to Storage 11477 | -7/Factory | Fabricated Cld. Airjet? 11505 | -7/Factory | Repaired Cld. Airjet 11577 | -7/Factory | Repaired Cld. Airjet 11731 | -7/Factory | Fabricated Hacking Suite? 11823 | -7/Factory | Entered Storage 11824 | -7/Storage | Identified exit to Recycling 11826 | -7/Storage | Loaded intel: 22 trap records 11921 | -7/Storage | Repaired Cld. Airjet? 11996 | -7/Storage | Learned location of Armory (-4) 12136 | -7/Storage | Repaired Cld. Airjet 12171 | -7/Storage | Met a pair of Derelict thieves 12187 | -7/Storage | Used back door to open Recycling access 12199 | -7/Storage | Entered Recycling 12200 | -7/Recycling | Identified exit to Factory 12200 | -7/Recycling | Identified exit to Scraptown 12251 | -7/Recycling | Scanned before Scraplab entrance 12255 | -7/Recycling | Entered Scraplab 12259 | -7/Recycling | Entered Scraptown 12259 | -7/Scraptown | System corruption cleaned by C-Scrubber 12312 | -7/Scraptown | Visited Cyclists 12317 | -7/Scraptown | Heard Great Nut preacher, LISTEN AND RECITE! 12322 | -7/Scraptown | Visited SPCMW 12330 | -7/Scraptown | Visited Supply Room 12334 | -7/Scraptown | Visited Awakened 12340 | -7/Scraptown | Visited IN-MT5's Study 12385 | -7/Scraptown | Visited Symbiants 12397 | -7/Scraptown | Visited UFD Registry 12397 | -7/Scraptown | Registered with UFD as "Fibersys" 12478 | -7/Scraptown | Visited Botcube Research 12484 | -7/Scraptown | Visited Scrapoid Pod Storage 12509 | -7/Scraptown | Visited A0-MCA Data Center 12511 | -7/Scraptown | Given an A- rating by A0-MCA 12513 | -7/Scraptown | Found A0-MCA's Component Scanner 12520 | -7/Scraptown | Visited Scrap Suit Storage 12526 | -7/Scraptown | Visited Junk Repository 12533 | -7/Scraptown | Visited Science Guys 12545 | -7/Scraptown | Visited DA-N13 Charitable Foundation 12548 | -7/Scraptown | Found DCF Scrap (29 items) 12560 | -7/Scraptown | Visited Curators Association 12572 | -7/Scraptown | Visited Derelict Rescue Squad 12605 | -7/Scraptown | Met Optimus 12605 | -7/Scraptown | Accepted into 0bPrime 12665 | -7/Scraptown | Discovered exit to Factory (range 3) 12666 | -7/Scraptown | Entered Factory 12666 | -5/Factory | Evolved 4 slots: Power x1, Propulsion x1, Utility x2 12849 | -5/Factory | Repaired Cld. Airjet 12922 | -5/Factory | Repaired Cld. Airjet 13002 | -5/Factory | Repaired Cld. Airjet? 13107 | -5/Factory | Repaired Cld. Airjet? 13221 | -5/Factory | Repaired Cld. Airjet 13321 | -5/Factory | Discovered new exit (range 6) 13401 | -5/Factory | Identified exit to Upper Caves 13525 | -5/Factory | Loaded intel: 8 recycling unit locations 13630 | -5/Factory | Learned location of Protoforge (-2) 13677 | -5/Factory | Spotted B-75 Beast 13684 | -5/Factory | Build established: Hacker-Sprinter 13724 | -5/Factory | Fabricated Adv. Hacking Suite? 14041 | -5/Factory | Repaired Broken Cld. Airjet 14112 | -5/Factory | Fabricated Cld. Airjet? 14113 | -5/Factory | Repaired Cld. Airjet 14278 | -5/Factory | Manually triggered Chute Trap 14278 | -5/Factory | Sucked down chute 14278 | -5/Factory | Entered Waste 14284 | -5/Waste | Spotted C-40 Crusher 14289 | -5/Waste | Spotted C-40 Crusher 14289 | -5/Waste | Spotted C-40 Crusher 14291 | -5/Waste | Spotted C-40 Crusher 14292 | -5/Waste | Spotted C-40 Crusher 14293 | -5/Waste | EMP discharged 14293 | -5/Waste | Lost 4 parts (1p2n1u) 14293 | -5/Waste | System corruption reached 10% 14296 | -5/Waste | Spotted C-40 Crusher 14305 | -5/Waste | Discovered new exit (range 10) 14308 | -5/Waste | Identified exit to Factory 14314 | -5/Waste | Entered Factory 14340 | -5/Factory | Build established: Hacker-Mutant 14343 | -5/Factory | Discovered exit to Upper Caves (range 5) 14388 | -5/Factory | Fabricated Adv. Sensor Array (x2) 14566 | -5/Factory | Lost 4 parts (1p3n) 14652 | -5/Factory | Core integrity fell below 50% 14698 | -5/Factory | Lost 8 parts (2p4n2w) 15125 | -5/Factory | Core integrity fell below 20% 15164 | -5/Factory | Identified exit to Factory 15183 | -5/Factory | Loaded intel: 8 recycling unit locations 15325 | -5/Factory | Entered another Factory area 15325 | -4/Factory | Accompanied by 1 ally 15325 | -4/Factory | Evolved 2 slots: Utility x2 15449 | -4/Factory | Loaded intel: 8 recycling unit locations 15552 | -4/Factory | Found Prototype Processor 15552 | -4/Factory | Identified Exp. Terrain Scan Processor 15686 | -4/Factory | Lost 4 parts (3n1w) 15853 | -4/Factory | Discovered new exit (range 9) 15859 | -4/Factory | Identified exit to Research 15954 | -4/Factory | Lost 8 parts (2p5n1u) 16099 | -4/Factory | Lost 5 parts (1n3u1w) 16469 | -4/Factory | Found Prototype Hackware 16469 | -4/Factory | Identified Exp. Hacking Suite 16606 | -4/Factory | System corruption reached 10% 16609 | -4/Factory | Core integrity fell below 50% 16610 | -4/Factory | Garrison activated, responded to threat 16673 | -4/Factory | Destroyed 8 combat bots 16680 | -4/Factory | Lost 15 parts (3p7n4u1w) 16750 | -4/Factory | Discovered exit to Research (range 9) 16901 | -4/Factory | Entered Research 16901 | -3/Research | Evolved 2 slots: Propulsion x2 16928 | -3/Research | Discovered new exit (range 10) 17104 | -3/Research | Build established: Hacker-Scout 17178 | -3/Research | Identified exit to Testing 17181 | -3/Research | Entered Testing 17208 | -3/Testing | Found Prototype Energy Gun 17305 | -3/Testing | Found Prototype Ballistic Cannon 17356 | -3/Testing | Spotted PH-C9X4QM7OAT 17406 | -3/Testing | Found Prototype Ballistic Gun 17407 | -3/Testing | Identified Hyp. EM Gauss Rifle 17409 | -3/Testing | Identified Hyp. Multirail 17433 | -3/Testing | Build established: Scavenger-Scout 17517 | -3/Testing | Lost 8 parts (1p5n2u) 17555 | -3/Testing | Lost 3 parts (1p2n) 17579 | -3/Testing | Destroyed PH-C9X4QM7OAT 17595 | -3/Testing | Found Prototype Device 17595 | -3/Testing | Identified Exp. Weapon Cycler 17598 | -3/Testing | Found Prototype Device 17598 | -3/Testing | Identified Exp. ECM Suite 17605 | -3/Testing | Lost 3 parts (1p1n1u) 17636 | -3/Testing | System corruption reached 10% 17638 | -3/Testing | Identified Omega Cannon 17668 | -3/Testing | Lost 3 parts (1n1u1w) 17757 | -3/Testing | Core integrity fell below 50% 17818 | -3/Testing | Lost 4 parts (1n3u) 17865 | -3/Testing | Core integrity fell below 20% 17891 | -3/Testing | Destroyed by P-80 Master with Gamma Rifle Last Messages --------------- 17858_ Slug penetrates Wall. 17858_ Slug penetrates Terminal. 17858_ Imp. Antigrav System destroyed. 17861_ Penetrated by Slug. 17861_ Imp. Antigrav System destroyed. 17861_ Slug penetrates Wall. 17862_ P-80 Master resets P-80 Master, system corruption cleaned. 17863_ Slug penetrates Wall. 17863_ Penetrated by Slug. 17873_ Adv. Heat Sink destroyed. 17873_ Imp. Antigrav System destroyed. 17878_ Harmonic Fracturing Unit disabled. 17880_ Slug penetrates Door. 17880_ Sml. Battery destroyed. 17884_ U-05 Engineer builds a Wall. 17884_ Med. Storage Unit destroyed. 17885_ System corrupted: Matter fused (-10). 17887_ Mic. Antimatter Reactor destroyed. 17889_ Slug penetrates Wall. 17889_ Penetrated by Slug. Map ----- +----------------------------------------------------+ | ?????????# # ?"??#?# #### # | | ########## #?????#?## #??# # | | #??###??### ###?# """"" # | | #?#??###### ###?# """"" #|! | | ??# ###### ##### """"" # = | | ??# ^ ##### """"" += | | ??# ^ ^ #?#?# # | | ??+ ###### ### ###### """"" ! # | | ??# #????# ##" """ """ ###### """"" ### | | ??# #????# ##" """ """ #?#### """"" ! ### | | ??# ######/##" """ """ ###?## """""!| ##? | | ??# #!%[=![##T ###### =! |=### | | ??# #[%" =[##" """ ###########"###"##### | | ??# #[%| [*##" """ " F ############ !%=% | | ??#![/%=|"%=##" ] """ """ !##?######### *[ | | ??# #! !!! ### ############ | | ??# # = / !############ | | ??# ########## #####u#### ############ | | ??# #???????###"## # ##?####?#### | | ??# #???#?#?# # """"" # ########?### " " "" " | | ??# ???????# ] # """"" + ############ "[" "" " | | ??# ?????#?# # p """" #+############ """ "" " | | ??# ?###??# #p # !########## "" | | ??# #???????# + # ########## """"""" | | ??# #???????# # ]]]/ # ##?####### | | ??# #????#??###### ]][ @ # ##?#############/## | | ??# ???????? ? # ]][ # ]############## # | | ??# ??"??????""??##########| ############## # | | ??# ???????????" ##?####### ############## # | | ??# ? ????????????#########/#########?### # | | ??# ???? ???? ? ?#?####### ############# # | | ??? ???#?#??#?????###?#####+#########?### """ # | | ??? ?????????????##?#?##?# ##### """ # | | ??? ?????????? ? ? ###?## """ ##### """ # | | ? ? ???????? ?"?" #??### " ##### # | | ???##?????????S?" ??#?## """ ##### # | | ??? ?????????????? # + ##### # | | ? ???????????? # # " ##### "" # | | ? ????? ?????????? ?# ? + """ ##### "" # | | ???###?????????""? ? ?# """ ##### T" # | | ? ??###????????"?"? # ? # """ " "" | | ?? ? +?????? ?? ? ?? ? # # "" | | #???## ? ??#?#####??# ############ | | ???## # ???## ? | | ? #??# # ? #?# ?? #############+########## | | ? ??## #? ??# """ # # ###? | | ?#?# ##+##### """ ? # """ # """ #### | | ###### #?#?# """ #### """ # """" ###? | | # ##?## ??## """ # """" #### | | # ##### #### """ # """ = ! #### | +----------------------------------------------------+ Best States ------------- Heat Dissipation 74 Coolant Potential 80 Energy Generation 37 Energy Capacity 530 Matter Stores 300 Matter Capacity 300 Sight Range 20 Robot Scan Range 16 Terrain Scan Range 24 Terrain Scan Density 410 ECM Strength 3 Armor Coverage 675 Resistance: TH 10 Utility Shielding 66 Weapon Cycling 30 Melee Speed Boost 40 Evasion (%) 59 Targeting Accuracy 6 Recoil Reduction 5 Offensive Hacking 52 Defensive Hacking 10 Authchip Count 1 Item Schematics ----------------- Trap Extractor | -9/Materials | Scanalyzed Hacking Suite | -8/Materials | Scanalyzed Cld. Airjet | -7/Factory | Scanalyzed Adv. Hacking Suite | -5/Factory | Scanalyzed Adv. Sensor Array | -5/Factory | Hacked Lrn. Sensor Array | -5/Factory | Hacked Robot Schematics ------------------ M-13 Machinist | -10/Materials | Hacked Fabricated ------------ Cld. Airjet | x1 | -7/Factory | Authchip Cld. Airjet | x1 | -7/Factory Cld. Airjet | x1 | -7/Factory Cld. Airjet | x1 | -7/Factory Hacking Suite | x1 | -7/Factory Adv. Hacking Suite | x1 | -5/Factory Cld. Airjet | x1 | -5/Factory Adv. Sensor Array | x2 | -5/Factory Repaired ---------- Lgt. Assault Rifle | 31% | -10/Materials Lgt. Treads | 24% | -10/Materials Shield Generator | 26% | -9/Materials Imp. Assault Rifle | 10% | -8/Materials Lgt. Treads | 11% | -8/Materials Hrd. Medium Armor Plating | 12% | -8/Materials Cld. Airjet | 24% | -7/Factory Cld. Airjet | 60% | -7/Factory Cld. Airjet | 55% | -7/Storage Cld. Airjet | 10% | -7/Storage Cld. Airjet | 5% | -5/Factory Cld. Airjet | 10% | -5/Factory Cld. Airjet | 14% | -5/Factory Cld. Airjet | 18% | -5/Factory Cld. Airjet | 40% | -5/Factory Cld. Airjet | 6% | -5/Factory | Broken Cld. Airjet | 55% | -5/Factory Alien Tech Used ----------------- None Achievements -------------- None Challenges ------------ None Game ------ Seed ZhirovPortableCarapace Manual? 0 Play Time 02:04:42 Cumulative 686.7 hours Start 2025.05.10 @ 14:46:22 End 2025.05.10 @ 21:55:46 Sessions 5 Manual Loads 0 Difficulty Rogue Special Mode None Game No. 366 Rogue 366 Adventurer 0 Explorer 0 Win Type - Total 55 Types 37/4/5/2/1/1/3/1/1/0 Lore% 90 Gallery% 83 Achievement% 91 Wizard Run 0 Options --------- Layout 0 ASCII 0 Keyboard 1 Movement Numpad Keybinds 0 Fullscreen 2 Font 18/SmallcapsGlow Map View 76x50 Zoom Use 0% Tactical HUD 1 Map Filters NONE Filters NONE Steam 1 RUN: 8d422889-be75-4458-b0a5-399525ce52f4